fUST/lending_fUST_20250118
["ID","MTS","AMOUNT","RATE_DAILY","PERIOD"]
[349481577,1737207035822,-500.0,0.00022054,3]
[349481578,1737207035831,-500.0,0.00022054,3]
[349481579,1737207035841,-525.58,0.00022054,3]
[349481580,1737207035852,-3137.49462036,0.00022107,3]
[349481581,1737207035861,-216.45634347,0.00022164,2]
[349481582,1737207035872,-3137.49462036,0.00022176,3]
[349481583,1737207035881,-500.0,0.00022189,3]
[349481584,1737207035891,-500.0,0.0002219,3]
[349481585,1737207035900,-500.0,0.0002219,3]
[349481586,1737207035911,-151.0,0.0002219,7]
[349481587,1737207035920,-500.0,0.00022191,3]
[349481588,1737207035930,-500.0,0.00022191,3]
[349481589,1737207035940,-206.76,0.00022191,3]
[349481590,1737207035951,-1096.26,0.00022191,2]
[349481591,1737207035961,-585.22,0.00022191,3]
[349481592,1737207035971,-207.21,0.00022191,3]
[349481593,1737207035981,-500.0,0.00022191,3]
[349481594,1737207035991,-500.0,0.00022191,3]
[349481595,1737207036000,-500.0,0.00022191,3]
[349481596,1737207036009,-500.0,0.00022191,3]
[349481597,1737207036019,-500.0,0.00022191,3]
[349481598,1737207036028,-500.0,0.00022191,3]
[349481599,1737207036038,-4568.34,0.00022191,3]
[349481600,1737207036047,-500.0,0.00022191,3]
[349481601,1737207036056,-500.0,0.00022191,3]
[349481602,1737207036065,-242.24,0.00022191,3]
[349481603,1737207036075,-500.0,0.00022191,3]
[349481604,1737207036084,-500.0,0.00022191,3]
[349481605,1737207036094,-500.0,0.00022191,3]
[349481606,1737207036103,-1350.47,0.00022191,3]
[349481607,1737207036111,-500.0,0.00022191,3]
[349481608,1737207036120,-4865.72,0.00022191,3]
[349481609,1737207036129,-500.0,0.00022191,3]
[349481610,1737207036138,-823.17,0.00022191,3]
[349481611,1737207036147,-1942.41,0.00022191,3]
[349481612,1737207036156,-189.849554,0.00022191,7]
[349481613,1737207036166,-500.0,0.00022191,3]
[349481614,1737207036175,-151.0,0.00022191,7]
[349481615,1737207036184,-618.603962,0.00022191,7]
[349481616,1737207036192,-202.78,0.00022191,3]
[349481617,1737207036201,-618.603962,0.00022191,7]
[349481618,1737207036210,-1192.52,0.00022191,3]
[349481619,1737207036219,-1207.16,0.00022191,3]
[349481620,1737207036228,-500.0,0.00022191,3]
[349481621,1737207036237,-500.0,0.00022191,3]
[349481622,1737207036246,-371.05,0.00022191,3]
[349481623,1737207036255,-500.0,0.00022191,3]
[349481624,1737207036265,-491.417974,0.00022191,7]
[349481625,1737207036274,-500.0,0.00022191,3]
[349481626,1737207036283,-491.417974,0.00022191,7]
[349481627,1737207036292,-3137.49462036,0.00022245,3]
[349481628,1737207036301,-536.73479423,0.00022281,2]
[349481629,1737207036310,-500.0,0.00022297,2]
[349481630,1737207036319,-3137.49462036,0.00022314,3]
[349481631,1737207036328,-500.0,0.00022326,3]
[349481632,1737207036338,-500.0,0.00022327,3]
[349481633,1737207036351,-500.0,0.00022327,3]
[349481634,1737207036360,-500.0,0.00022328,3]
[349481635,1737207036370,-1096.26,0.00022328,2]
[349481636,1737207036379,-500.0,0.00022328,3]
[349481637,1737207036388,-500.0,0.00022328,3]
[349481638,1737207036397,-500.0,0.00022328,3]
[349481639,1737207036406,-500.0,0.00022328,3]
[349481640,1737207036417,-500.0,0.00022328,3]
[349481641,1737207036427,-500.0,0.00022328,3]
[349481642,1737207036436,-4568.34,0.00022328,3]
[349481643,1737207036447,-500.0,0.00022328,3]
[349481644,1737207036458,-500.0,0.00022328,3]
[349481645,1737207036470,-500.0,0.00022328,3]
[349481646,1737207036481,-500.0,0.00022328,3]
[349481647,1737207036493,-500.0,0.00022328,3]
[349481648,1737207036502,-1350.47,0.00022328,3]
[349481649,1737207036511,-369.13,0.00022328,3]
[349481650,1737207036520,-4865.72,0.00022328,3]
[349481651,1737207036530,-204.97,0.00022328,3]
[349481652,1737207036540,-823.17,0.00022328,3]
[349481653,1737207036549,-1942.41,0.00022328,3]
[349481654,1737207036558,-344.15000004,0.00022328,3]
[349481655,1737207036568,-1192.52,0.00022328,3]
[349481656,1737207036577,-1207.16,0.00022328,3]
[349481657,1737207036586,-500.0,0.00022328,3]
[349481658,1737207036599,-500.0,0.00022328,3]
[349481659,1737207036608,-500.0,0.00022328,3]
[349481660,1737207036618,-500.0,0.00022328,3]
[349481661,1737207036627,-500.0,0.00022379,2]
[349481662,1737207036637,-3137.49462036,0.00022383,3]
[349481663,1737207036646,-3137.49462036,0.00022452,3]
[349481664,1737207036656,-151.0,0.00022452,7]
[349481665,1737207036665,-482.72190237,0.00022462,2]
[349481666,1737207036675,-500.0,0.00022464,3]
[349481667,1737207036684,-444.15,0.00022465,3]
[349481668,1737207036694,-1096.26,0.00022465,2]
[349481669,1737207036703,-529.88,0.00022465,3]
[349481670,1737207036713,-152.58,0.00022465,3]
[349481671,1737207036722,-500.0,0.00022465,3]
[349481672,1737207036731,-500.0,0.00022465,3]
[349481673,1737207036740,-151.0,0.00022465,7]
[349481674,1737207036749,-500.0,0.00022465,3]
[349481675,1737207036758,-500.0,0.00022465,3]
[349481676,1737207036767,-151.0,0.00022465,7]
[349481677,1737207036777,-151.0,0.00022465,7]
[349481678,1737207036786,-4568.34,0.00022465,3]
[349481679,1737207036796,-500.0,0.00022465,3]
[349481680,1737207036805,-151.0,0.00022465,7]
[349481681,1737207036814,-500.0,0.00022465,3]
[349481682,1737207036823,-151.0,0.00022465,7]
[349481683,1737207036832,-151.0,0.00022465,7]
[349481684,1737207036846,-500.0,0.00022465,3]
[349481685,1737207036857,-448.01,0.00022465,3]
[349481686,1737207036868,-323.81,0.00022465,3]
[349481687,1737207036882,-152.894291,0.00022465,7]
[349481688,1737207036893,-1350.47,0.00022465,3]
[349481689,1737207036903,-151.0,0.00022465,7]
[349481690,1737207036916,-4865.72,0.00022465,3]
[349481691,1737207036926,-823.17,0.00022465,3]
[349481692,1737207036936,-1942.41,0.00022465,3]
[349481693,1737207036946,-1192.52,0.00022465,3]
[349481694,1737207036956,-1207.16,0.00022465,3]
[349481695,1737207036966,-500.0,0.00022465,3]
[349481696,1737207036976,-500.0,0.00022465,3]
[349481697,1737207036986,-500.0,0.00022465,3]
[349481698,1737207036996,-404.27,0.00022465,3]
[349481699,1737207037008,-500.0,0.00022521,2]
[349481700,1737207037018,-3137.49462036,0.00022521,3]
[349481701,1737207037027,-154.921162,0.00022573,7]
[349481702,1737207037037,-618.603962,0.00022573,7]
[349481703,1737207037046,-618.603962,0.00022573,7]
[349481704,1737207037056,-491.417974,0.00022573,7]
[349481705,1737207037065,-491.417974,0.00022573,7]
[349481706,1737207037075,-535.0,0.00022573,2]
[349481707,1737207037084,-2073.0,0.00022573,2]
[349481708,1737207037095,-2316.0,0.00022573,2]
[349481709,1737207037104,-395.0,0.00022573,2]
[349481710,1737207037113,-3137.49462036,0.0002259,3]
[349481711,1737207037122,-500.0,0.00022601,3]
[349481712,1737207037131,-1096.26,0.00022602,2]
[349481713,1737207037140,-184.313212,0.00022602,7]
[349481714,1737207037149,-500.0,0.00022602,3]
[349481715,1737207037158,-151.0,0.00022602,7]
[349481716,1737207037167,-500.0,0.00022602,3]
[349481717,1737207037177,-151.0,0.00022602,7]
[349481718,1737207037187,-500.0,0.00022602,3]
[349481719,1737207037196,-469.3,0.00022602,3]
[349481720,1737207037205,-4568.34,0.00022602,3]
[349481721,1737207037215,-500.0,0.00022602,3]
[349481722,1737207037224,-500.0,0.00022602,3]
[349481723,1737207037233,-500.0,0.00022602,3]
[349481724,1737207037243,-1350.47,0.00022602,3]
[349481725,1737207037253,-4865.72,0.00022602,3]
[349481726,1737207037264,-823.17,0.00022602,3]
[349481727,1737207037273,-1942.41,0.00022602,3]
[349481728,1737207037283,-1192.52,0.00022602,3]
[349481729,1737207037293,-1207.16,0.00022602,3]
[349481730,1737207037302,-500.0,0.00022602,3]
[349481731,1737207037311,-500.0,0.00022602,3]
[349481732,1737207037321,-597.09,0.00022602,3]
[349481733,1737207037330,-3137.49462036,0.00022659,3]
[349481734,1737207037340,-3137.49462036,0.00022728,3]
[349481735,1737207037354,-500.0,0.00022737,3]
[349481736,1737207037365,-500.0,0.00022738,2]
[349481737,1737207037375,-500.0,0.00022738,3]
[349481738,1737207037384,-500.0,0.00022738,2]
[349481739,1737207037394,-197.70269296,0.00022738,2]
[349481740,1737207037404,-246.67216757,0.00022738,2]
[349481741,1737207037413,-151.0,0.00022739,7]
[349481742,1737207037423,-1096.26,0.00022739,2]
[349481743,1737207037432,-151.0,0.00022739,7]
[349481744,1737207037442,-151.0,0.00022739,7]
[349481745,1737207037451,-151.0,0.00022739,7]
[349481746,1737207037460,-151.0,0.00022739,7]
[349481747,1737207037470,-151.0,0.00022739,7]
[349481748,1737207037480,-151.0,0.00022739,7]
[349481749,1737207037489,-181.037859,0.00022739,7]
[349481750,1737207037498,-500.0,0.00022739,3]
[349481751,1737207037508,-563.71,0.00022739,3]
[349481752,1737207037517,-500.0,0.00022739,3]
[349481753,1737207037527,-4568.34,0.00022739,3]
[349481754,1737207037537,-500.0,0.00022739,3]
[349481755,1737207037546,-595.32,0.00022739,3]
[349481756,1737207037556,-500.0,0.00022739,3]
[349481757,1737207037565,-1350.47,0.00022739,3]
[349481758,1737207037575,-4865.72,0.00022739,3]
[349481759,1737207037585,-823.17,0.00022739,3]
[349481760,1737207037597,-1942.41,0.00022739,3]
[349481761,1737207037607,-1192.52,0.00022739,3]
[349481762,1737207037617,-1207.16,0.00022739,3]
[349481763,1737207037627,-500.0,0.00022739,3]
[349481764,1737207037637,-500.0,0.00022739,3]
[349481765,1737207037647,-395.767,0.0002274,2]
[349481766,1737207037658,-167.801046,0.00022759,2]
[349481767,1737207037668,-3137.49462036,0.00022797,3]
[349481768,1737207037677,-3137.49462036,0.00022866,3]
[349481769,1737207037687,-500.0,0.00022875,3]
[349481770,1737207037696,-151.0,0.00022876,7]
[349481771,1737207037706,-151.0,0.00022876,7]
[349481772,1737207037715,-195.334235,0.00022876,7]
[349481773,1737207037725,-195.334235,0.00022876,7]
[349481774,1737207037735,-1096.26,0.00022876,2]
[349481775,1737207037744,-500.0,0.00022876,3]
[349481776,1737207037757,-151.0,0.00022876,7]
[349481777,1737207037768,-500.0,0.00022876,3]
[349481778,1737207037778,-151.0,0.00022876,7]
[349481779,1737207037787,-4568.34,0.00022876,3]
[349481780,1737207037796,-500.0,0.00022876,3]
[349481781,1737207037805,-151.0,0.00022876,7]
[349481782,1737207037815,-500.0,0.00022876,3]
[349481783,1737207037824,-1350.47,0.00022876,3]
[349481784,1737207037834,-4865.72,0.00022876,3]
[349481785,1737207037843,-823.17,0.00022876,3]
[349481786,1737207037856,-1942.41,0.00022876,3]
[349481787,1737207037865,-618.603962,0.00022876,7]
[349481788,1737207037879,-618.603962,0.00022876,7]
[349481789,1737207037889,-1192.52,0.00022876,3]
[349481791,1737207037898,-1207.16,0.00022876,3]
[349481792,1737207037907,-500.0,0.00022876,3]
[349481794,1737207037918,-500.0,0.00022876,3]
[349481796,1737207038017,-491.417974,0.00022876,7]
[349481797,1737207038027,-491.417974,0.00022876,7]
[349481798,1737207038037,-1000.0,0.00022927,2]
[349481799,1737207038048,-3137.49462036,0.00022934,3]
[349481800,1737207038059,-648.4891608,0.00022983,2]
[349481801,1737207038069,-353.3916328,0.00022986,2]
[349481802,1737207038079,-201.10590486,0.00022999,3]
[349481803,1737207038091,-6065.85995139,0.00023,7]
[349481804,1737207038108,-7438.69753278,0.00023,2]
[349481805,1737207038118,-1000.0,0.00023,23]
[349481806,1737207038127,-629.42,0.00023,2]
[349481807,1737207038137,-620.0,0.00023,2]
[349481808,1737207038146,-308.50202435,0.00023,2]
[349481809,1737207038156,-3137.49462036,0.00023003,3]
[349481810,1737207038165,-151.0,0.00023013,7]
[349481811,1737207038174,-1096.26,0.00023013,2]
[349481812,1737207038184,-151.0,0.00023013,7]
[349481813,1737207038193,-214.378115,0.00023013,7]
[349481814,1737207038203,-151.0,0.00023013,7]
[349481815,1737207038213,-151.0,0.00023013,7]
[349481816,1737207038222,-151.0,0.00023013,7]
[349481817,1737207038231,-151.0,0.00023013,7]
[349481818,1737207038240,-500.0,0.00023013,3]
[349481819,1737207038249,-151.0,0.00023013,7]
[349481820,1737207038258,-151.0,0.00023013,7]
[349481821,1737207038268,-547.63,0.00023013,3]
[349481822,1737207038278,-4568.34,0.00023013,3]
[349481823,1737207038287,-500.0,0.00023013,3]
[349481824,1737207038296,-500.0,0.00023013,3]
[349481825,1737207038306,-1350.47,0.00023013,3]
[349481826,1737207038315,-4865.72,0.00023013,3]
[349481827,1737207038324,-823.17,0.00023013,3]
[349481828,1737207038334,-1942.41,0.00023013,3]
[349481829,1737207038344,-1192.52,0.00023013,3]
[349481830,1737207038358,-1207.16,0.00023013,3]
[349481831,1737207038367,-500.0,0.00023013,3]
[349481832,1737207038376,-500.0,0.00023013,3]
[349481833,1737207038387,-3137.49462036,0.00023072,3]
[349481835,1737207038397,-151.0,0.000231,7]
[349481836,1737207038406,-153.9204537,0.00023123,2]
[349481837,1737207038416,-214.9026291,0.00023123,2]
[349481838,1737207038426,-151.0,0.00023141,7]
[349481839,1737207038436,-195.334235,0.00023141,7]
[349481840,1737207038445,-195.334235,0.00023141,7]
[349481841,1737207038455,-274.840053,0.00023141,7]
[349481842,1737207038465,-159.15,0.00023141,7]
[349481843,1737207038475,-3137.49462036,0.00023141,3]
[349481844,1737207038485,-196.760453,0.00023149,2]
[349481845,1737207038495,-196.760453,0.00023149,2]
[349481846,1737207038504,-510.39956673,0.0002315,8]
[349481847,1737207038514,-1096.26,0.0002315,2]
[349481848,1737207038523,-500.0,0.0002315,3]
[349481849,1737207038533,-4568.34,0.0002315,3]
[349481850,1737207038543,-500.0,0.0002315,3]
[349481851,1737207038553,-500.0,0.0002315,3]
[349481852,1737207038563,-1350.47,0.0002315,3]
[349481853,1737207038572,-4865.72,0.0002315,3]
[349481854,1737207038582,-823.17,0.0002315,3]
[349481855,1737207038591,-1942.41,0.0002315,3]
[349481856,1737207038606,-1192.52,0.0002315,3]
[349481857,1737207038616,-1207.16,0.0002315,3]
[349481858,1737207038626,-423.57,0.0002315,3]
[349481859,1737207038636,-500.0,0.0002315,3]
[349481860,1737207038646,-151.0,0.000232,9]
[349481861,1737207038656,-151.0,0.0002321,7]
[349481862,1737207038665,-3137.49462036,0.0002321,3]
[349481863,1737207038675,-3137.49462036,0.00023279,3]
[349481864,1737207038685,-151.0,0.00023287,7]
[349481865,1737207038695,-1096.26,0.00023287,2]
[349481866,1737207038705,-151.0,0.00023287,7]
[349481867,1737207038715,-151.0,0.00023287,7]
[349481868,1737207038724,-151.0,0.00023287,7]
[349481869,1737207038734,-151.0,0.00023287,7]
[349481870,1737207038743,-500.0,0.00023287,3]
[349481871,1737207038754,-4568.34,0.00023287,3]
[349481872,1737207038770,-500.0,0.00023287,3]
[349481873,1737207038782,-500.0,0.00023287,3]
[349481874,1737207038791,-1350.47,0.00023287,3]
[349481875,1737207038802,-4865.72,0.00023287,3]
[349481876,1737207038812,-823.17,0.00023287,3]
[349481877,1737207038821,-1942.41,0.00023287,3]
[349481878,1737207038830,-618.603962,0.00023287,7]
[349481879,1737207038840,-618.603962,0.00023287,7]
[349481880,1737207038855,-1192.52,0.00023287,3]
[349481881,1737207038864,-1207.16,0.00023287,3]
[349481882,1737207038878,-500.0,0.00023287,3]
[349481883,1737207038887,-491.417974,0.00023287,7]
[349481884,1737207038896,-491.417974,0.00023287,7]
[349481885,1737207038906,-500.0,0.00023291,2]
[349481886,1737207038917,-151.0,0.000233,7]
[349481887,1737207038926,-151.0,0.00023348,7]
[349481888,1737207038936,-3137.49462036,0.00023348,3]
[349481889,1737207038946,-3137.49462036,0.00023417,3]
[349481890,1737207038956,-151.0,0.00023424,7]
[349481891,1737207038966,-195.334235,0.00023424,7]
[349481892,1737207038976,-195.334235,0.00023424,7]
[349481893,1737207038986,-1096.26,0.00023424,2]
[349481894,1737207038995,-500.0,0.00023424,3]
[349481895,1737207039005,-151.0,0.00023424,7]
[349481896,1737207039015,-151.0,0.00023424,7]
[349481897,1737207039024,-4568.34,0.00023424,3]
[349481898,1737207039034,-500.0,0.00023424,3]
[349481899,1737207039044,-500.0,0.00023424,3]
[349481900,1737207039054,-1350.47,0.00023424,3]
[349481901,1737207039064,-4865.72,0.00023424,3]
[349481902,1737207039177,-823.17,0.00023424,3]
[349481903,1737207039186,-1942.41,0.00023424,3]
[349481904,1737207039196,-1192.52,0.00023424,3]
[349481905,1737207039206,-1207.16,0.00023424,3]
[349481906,1737207039216,-598.23,0.00023424,3]
[349481907,1737207039226,-70148.99610621,0.0002345,2]
[349481908,1737207039235,-151.0,0.0002345,7]
[349481909,1737207039244,-151.0,0.0002345,7]
[349481910,1737207039254,-151.0,0.0002345,7]
[349481911,1737207039263,-151.0,0.0002345,7]
[349481912,1737207039274,-151.0,0.0002345,7]
[349481913,1737207039283,-169.341886,0.0002345,7]
[349481914,1737207039292,-196.760453,0.0002345,2]
[349481915,1737207039302,-196.760453,0.0002345,2]
[349481916,1737207039311,-195.334235,0.0002345,7]
[349481917,1737207039321,-195.334235,0.0002345,7]
[349481918,1737207039331,-151.0,0.0002345,7]
[349481919,1737207039341,-151.0,0.0002345,7]
[349481920,1737207039356,-151.0,0.0002345,7]
[349481921,1737207039365,-151.0,0.0002345,7]
[349481922,1737207039376,-151.0,0.0002345,7]
[349481923,1737207039385,-151.0,0.0002345,7]
[349481924,1737207039395,-151.0,0.0002345,7]
[349481925,1737207039404,-618.603962,0.0002345,7]
[349481926,1737207039413,-618.603962,0.0002345,7]
[349481927,1737207039423,-491.417974,0.0002345,7]
[349481928,1737207039433,-491.417974,0.0002345,7]
[349481929,1737207039442,-491.86598023,0.00023482,2]
[349481930,1737207039451,-3137.49462036,0.00023486,3]
[349481931,1737207039460,-136872.28125028,0.000235,2]
[349481932,1737207039533,-22285.51478487,0.000235,2]
[349481933,1737207039545,-37874.27038732,0.000235,2]
[349481934,1737207039557,-87963.63239305,0.000235,2]
[349481935,1737207039568,-40841.52707551,0.000235,2]
[349481939,1737207039898,-500.0,0.00021999,2]
[349481940,1737207039908,-500.0,0.00021999,2]
[349481941,1737207039919,-500.0,0.00021999,2]
[349481942,1737207039928,-24.19962075,0.00021999,2]
[349481943,1737207039940,-313.51685529,0.00021999,2]
[349481944,1737207039950,-250.0,0.00021999,2]
[349481945,1737207039960,-500.0,0.00021999,2]
[349481946,1737207039970,-500.0,0.00021999,2]
[349481947,1737207039979,-500.0,0.00021999,2]
[349481948,1737207039988,-500.0,0.00021999,2]
[349481949,1737207039999,-318.03090147,0.00021999,2]
[349481950,1737207040008,-500.0,0.00021999,2]
[349481951,1737207040017,-500.0,0.00021999,2]
[349481952,1737207040027,-505.63400589,0.00021999,2]
[349481953,1737207040037,-338.41730245,0.00021999,2]
[349481954,1737207040047,-500.0,0.00021999,2]
[349481955,1737207040056,-500.0,0.00021999,2]
[349481956,1737207040066,-500.0,0.00021999,2]
[349481957,1737207040075,-500.0,0.00021999,2]
[349481958,1737207040086,-437.39349755,0.00021999,2]
[349481959,1737207040102,-62.60650245,0.00021999,2]
[349481960,1737207040111,-388.57195724,0.00021999,2]
[349481961,1737207040121,-500.0,0.00021999,2]
[349481962,1737207040130,-352.60102552,0.00021999,2]
[349481963,1737207040141,-147.39897448,0.00021999,2]
[349481964,1737207040150,-500.0,0.00021999,2]
[349481965,1737207040160,-500.0,0.00021999,2]
[349481966,1737207040169,-500.0,0.00021999,2]
[349481967,1737207040179,-419.05679646,0.00021999,2]
[349481968,1737207040188,-500.0,0.00021999,2]
[349481969,1737207040197,-500.0,0.00021999,2]
[349481970,1737207040206,-500.0,0.00021999,2]
[349481972,1737207040217,-501.75489246,0.00021999,2]
[349481974,1737207040226,-500.0,0.00021999,2]
[349481976,1737207040235,-500.0,0.00021999,2]
[349481978,1737207040245,-500.0,0.00021999,2]
[349481980,1737207040254,-500.0,0.00021999,2]
[349481982,1737207040264,-500.0,0.00021999,2]
[349481984,1737207040274,-500.0,0.00021999,2]
[349481986,1737207040283,-500.0,0.00021999,2]
[349481988,1737207040292,-500.0,0.00021999,2]
[349481990,1737207040302,-500.0,0.00021999,2]
[349481992,1737207040312,-500.0,0.00021999,2]
[349481994,1737207040322,-500.0,0.00021999,2]
[349481996,1737207040331,-500.0,0.00021999,2]
[349481997,1737207040340,-500.0,0.00021999,2]
[349481999,1737207040353,-500.0,0.00021999,2]
[349482002,1737207040362,-500.0,0.00021999,2]
[349482003,1737207040372,-500.0,0.00021999,2]
[349482005,1737207040382,-500.0,0.00021999,2]
[349482007,1737207040391,-500.0,0.00021999,2]
[349482009,1737207040400,-500.0,0.00021999,2]
[349482011,1737207040409,-500.0,0.00021999,2]
[349482013,1737207040418,-22763.72763051,0.000235,2]
[349482018,1737207040681,-514.07,0.00021917,3]
[349482020,1737207040693,-16583.45,0.000235,2]
[349482078,1737207046447,-6375.64973046,0.00021779,2]
[349482530,1737207195290,150.09,0.000239,120]
[349482531,1737207586905,45.374229,0.00015,2]
[349482532,1737207586933,1756.15317566,0.00015,2]
[349482533,1737207613277,679.41,0.00025,120]
[349482535,1737207926070,167.271239,0.00013973,2]
[349482581,1737208232835,-2132.32047755,0.00017821,2]
[349482583,1737208232846,-716.68799732,0.00018001,2]
[349482585,1737208232858,-1829.31200268,0.00018001,2]
[349482588,1737208232868,-1421.29310957,0.00018183,2]
[349482590,1737208232879,-624.70689043,0.00018183,2]
[349482592,1737208232889,-500.0,0.00020105,2]
[349482594,1737208232898,-163.888223,0.00020663,2]
[349482596,1737208232907,-2214.38838155,0.00021,2]
[349482597,1737208232917,-215.479,0.00021916,2]
[349482598,1737208232926,-300.0,0.00021916,2]
[349482599,1737208232937,-527.0,0.00021917,3]
[349482600,1737208232947,-500.0,0.00021917,3]
[349482601,1737208232956,-500.0,0.00021917,3]
[349482602,1737208232967,-500.0,0.00021917,3]
[349482603,1737208232977,-554.22,0.00021917,3]
[349482604,1737208232986,-302.87424932,0.00021917,3]
[349482605,1737208232995,-500.0,0.00021917,3]
[349482606,1737208233005,-500.0,0.00021917,3]
[349482607,1737208233014,-500.0,0.00021917,3]
[349482608,1737208233024,-500.0,0.00021917,3]
[349482609,1737208233034,-504.8663192,0.00021917,3]
[349482611,1737208233046,-500.0,0.00021917,3]
[349482614,1737208233056,-500.0,0.00021917,3]
[349482615,1737208233066,-373.57050455,0.00021917,3]
[349482617,1737208233076,-500.0,0.00021917,3]
[349482619,1737208233085,-500.0,0.00021917,3]
[349482621,1737208233095,-500.0,0.00021917,3]
[349482623,1737208233105,-270.96000238,0.00021917,3]
[349482624,1737208233114,-500.0,0.00021917,3]
[349482626,1737208233124,-175.27,0.00021917,3]
[349482628,1737208233133,-500.0,0.00021917,3]
[349482629,1737208233143,-172.15246314,0.00021917,3]
[349482631,1737208233153,-500.0,0.00021917,3]
[349482633,1737208233163,-500.0,0.00021917,3]
[349482635,1737208233173,-500.0,0.00021917,3]
[349482636,1737208233183,-500.0,0.00021917,3]
[349482637,1737208233192,-500.0,0.00021917,3]
[349482638,1737208233202,-500.0,0.00021917,3]
[349482639,1737208233212,-500.0,0.00021917,3]
[349482640,1737208233224,-500.0,0.00021917,3]
[349482641,1737208233235,-500.0,0.00021917,3]
[349482642,1737208233244,-500.0,0.00021917,3]
[349482643,1737208233254,-500.0,0.00021917,3]
[349482644,1737208233264,-511.38921058,0.00021917,3]
[349482645,1737208233274,-500.0,0.00021917,3]
[349482646,1737208233283,-500.0,0.00021917,3]
[349482647,1737208233296,-500.0,0.00021917,3]
[349482648,1737208233306,-500.0,0.00021917,3]
[349482649,1737208233316,-500.0,0.00021917,3]
[349482650,1737208233325,-500.0,0.00021917,3]
[349482651,1737208233335,-500.0,0.00021917,3]
[349482652,1737208233346,-500.0,0.00021917,3]
[349482653,1737208233355,-66.11858814,0.00021917,3]
[349482654,1737208233368,-433.88141186,0.00021917,3]
[349482655,1737208233379,-500.0,0.00021917,3]
[349482656,1737208233389,-500.0,0.00021917,3]
[349482657,1737208233398,-500.0,0.00021917,3]
[349482658,1737208233408,-500.0,0.00021917,3]
[349482659,1737208233417,-568.97,0.00021917,2]
[349482660,1737208233427,-500.0,0.00021917,3]
[349482661,1737208233436,-500.0,0.00021917,3]
[349482662,1737208233447,-500.0,0.00021917,3]
[349482663,1737208233457,-515.54149168,0.00021917,3]
[349482664,1737208233467,-502.34824985,0.00021917,3]
[349482665,1737208233476,-503.16777661,0.00021917,3]
[349482666,1737208233486,-501.38329035,0.00021917,3]
[349482667,1737208233496,-500.0,0.00021917,3]
[349482668,1737208233506,-500.0,0.00021917,3]
[349482669,1737208233519,-554.56754953,0.00021917,3]
[349482670,1737208233530,-500.96280663,0.00021917,3]
[349482671,1737208233543,-621.39,0.00021917,3]
[349482672,1737208233556,-501.42367297,0.00021917,3]
[349482673,1737208233569,-500.0,0.00021917,3]
[349482674,1737208233581,-500.71719457,0.00021917,3]
[349482675,1737208233593,-500.0,0.00021917,3]
[349482676,1737208233603,-500.0,0.00021917,3]
[349482677,1737208233614,-205.41566002,0.00021917,3]
[349482678,1737208233624,-500.0,0.00021917,3]
[349482679,1737208233637,-500.0,0.00021917,3]
[349482680,1737208233648,-500.0,0.00021917,3]
[349482681,1737208233659,-500.0,0.00021917,3]
[349482682,1737208233670,-500.0,0.00021917,3]
[349482683,1737208233682,-182.59228053,0.00021917,3]